Cogmind - Beta 11 X2 @@@ ROGUE MODE // 2021.02.24 @ 01:32:56 Player: cptwinky Result: Destroyed by G-67 Veteran with Plasma Rifle Performance ------------- Evolutions (5) 2500 Regions Visited (22) 4400 Robots Destroyed (309) 1545 Value Destroyed (13068) 13068 Prototype IDs (35) 700 Alien Tech Used (1) 200 Bonus (11063) 11063 TOTAL SCORE: 33476 Bonus ------- High Alert Combat Kills 1204 Follower Combat Kills 752 Met Data Miner 300 Met Imprinter 300 Met Warlord at Base 500 MAIN.C Attacked Warlord 500 Warlord Defense Kill 8096 Friendly Fire -589 Cogmind --------- Core Integrity 0/1000 Matter 146/300 Energy 46/100 System Corruption 5% Temperature Cool (134) Movement Core (200) Ox3 Location -5/Warlord Parts ------- > --- POWER (2) -------- (None) > --- PROPULSION (4) --- (None) > --- UTILITY (8) ------ Advanced Cooling System Experimental Coolant Injector Long-range Terrain Scanner Experimental Terrain Scan Processor Experimental Targeting Computer > --- WEAPON (4) ------- Helical Railgun > --- INVENTORY (5) ---- Huge Storage Unit HERF Cannon Heavy Phase Cannon Compact Linear Accelerator Peak State ------------ > --- POWER ------------ Vortex Chain Reactor > --- PROPULSION ------- Medium Treads Medium Treads Improved Medium Treads Armored Medium Treads > --- UTILITY ---------- Advanced Heat Sink Experimental Coolant Injector High-capacity Storage Unit Makeshift Salvage Targeting Computer Experimental Targeting Computer Advanced Remote Shield Bomb Drone Bay > --- WEAPON ----------- HERF Cannon Enhanced Autogun Railgun Enhanced Gauss Cannon > --- INVENTORY -------- Huge Storage Unit Matter Compressor Long-range Terrain Scanner Experimental Terrain Scan Processor Improved Medium Armor Plating Light Regenerative Plating Experimental Focal Shield Makeshift Hacking Suite Makeshift System Shield Hacking Drone Bay HERF Cannon Heavy Phase Cannon Enhanced Autogun Enhanced Autogun KE Penetrator Helical Railgun Compact Linear Accelerator Advanced EMP Blaster Advanced EMP Blaster [Rating: 122] Favorites ----------- Power Enhanced Nuclear Core Engine Light Ion Engine Power Core Enhanced Nuclear Core Reactor Vortex Chain Reactor Propulsion Improved Treads Treads Improved Treads Wheel Wheel Utility High-capacity Storage Unit Device Advanced Sensor Array Storage High-capacity Storage Unit Processor Advanced Signal Interpreter Hackware Hacking Suite Protection Light Regenerative Plating Weapon Enhanced Autogun Energy Gun Force Rifle Energy Cannon Heavy Phase Cannon Ballistic Gun Enhanced Autogun Ballistic Cannon Enhanced Gauss Cannon Launcher Advanced EMP Blaster Special Weapon Mining Laser Impact Weapon Heavy Flail Slashing Weapon Power Sword Special Melee Weapon Datajack Build | -11 -10 -10 -9 -9 -9 -8 -8 -8 -7 -7 -7 -7 -6 -6 -6 -6 -6 -5 -5 -5 -5 -5 ------- Run | Scr Mat Min Mat Min Exi Min Mat Sto Fac Low Low Dat Pro Fac Low Low Zio Pro Fac Upp Upp War Slots Evolved 10 | . . . 2 . . . 2 . 2 . . . . 2 . . . . 2 . . . Power 1 | . . . . . . . . . . . . . . . . . . . 1 . . . Propulsion 2 | . . . 1 . . . . . . . . . . 1 . . . . . . . . Utility 6 | . . . 1 . . . 1 . 2 . . . . 1 . . . . 1 . . . Weapon 1 | . . . . . . . 1 . . . . . . . . . . . . . . . Parts Attached 351 | 6 20 1 18 . . 9 24 28 32 10 7 1 11 16 10 9 17 17 33 24 15 43 Power 15 | 1 1 . . . . . 3 1 2 . . . . . . . . 1 1 2 . 3 Engine 7 | 1 1 . . . . . 2 1 1 . . . . . . . . . 1 . . . Core 7 | . . . . . . . 1 . 1 . . . . . . . . 1 . 2 . 2 Reactor 1 | . . . . . . . . . . . . . . . . . . . . . . 1 Propulsion 59 | 2 5 1 6 . . . 7 9 11 . . . . 3 1 . 2 2 4 1 . 5 Treads 52 | 2 2 . 5 . . . 7 9 11 . . . . 3 1 . 2 1 3 1 . 5 Leg . | . . . . . . . . . . . . . . . . . . . . . . . Wheel 7 | . 3 1 1 . . . . . . . . . . . . . . 1 1 . . . Hover . | . . . . . . . . . . . . . . . . . . . . . . . Flight . | . . . . . . . . . . . . . . . . . . . . . . . Utility 134 | 1 5 . 4 . . 1 4 6 11 5 6 1 7 5 4 7 7 8 14 10 12 16 Device 78 | . . . . . . . 2 . 5 5 5 1 6 3 3 4 3 3 12 7 10 9 Storage 12 | 1 3 . 1 . . . . . . . 1 . . . . . 3 1 . 1 . 1 Processor 9 | . . . . . . . . . 2 . . . . 1 . 1 . . 1 . 1 3 Hackware 1 | . . . . . . . 1 . . . . . . . . . . . . . . . Protection 34 | . 2 . 3 . . 1 1 6 4 . . . 1 1 1 2 1 4 1 2 1 3 Artifact . | . . . . . . . . . . . . . . . . . . . . . . . Weapon 143 | 2 9 . 8 . . 8 10 12 8 5 1 . 4 8 5 2 8 6 14 11 3 19 Energy Gun 10 | 1 4 . . . . . . . . . . . . . . . 2 . . 1 . 2 Energy Cannon 9 | . . . . . . . . . . . . . . . . . . . 1 4 1 3 Ballistic Gun 77 | 1 2 . 6 . . 4 7 8 6 3 . . 2 6 2 1 5 4 8 4 1 7 Ballistic Cannon 5 | . . . 1 . . . . . . . . . . . . . . . . 1 . 3 Launcher 26 | . 2 . . . . 4 2 2 1 1 1 . 2 . . . . 1 4 1 1 4 Special Weapon 3 | . 1 . 1 . . . . . . . . . . . 1 . . . . . . . Impact Weapon 11 | . . . . . . . 1 1 1 1 . . . 1 2 1 1 1 1 . . . Slashing Weapon 1 | . . . . . . . . . . . . . . 1 . . . . . . . . Piercing Weapon . | . . . . . . . . . . . . . . . . . . . . . . . Special Melee Weapon 1 | . . . . . . . . 1 . . . . . . . . . . . . . . Unidentified Prototypes 17 | . . . . . . . . 3 1 1 . . 1 . . . 2 . . . . 9 Parts Lost 44 | . 4 . 2 . . 1 2 1 . . . . . . . . . 4 4 1 1 24 Power 2 | . 1 . . . . . . . . . . . . . . . . . . . . 1 Propulsion 11 | . 1 . . . . . . . . . . . . . . . . 2 2 . . 6 Utility 16 | . . . 1 . . 1 . 1 . . . . . . . . . 2 2 . 1 8 Weapon 15 | . 2 . 1 . . . 2 . . . . . . . . . . . . 1 . 9 Highest Loss Streak 8 | . 2 . 1 . . 1 2 1 . . . . . . . . . 4 3 1 1 8 Average Slot Usage (%) 92 | . 93 100 99 100 100 100 99 100 99 91 92 92 92 91 92 93 90 78 86 87 90 80 Engine 3 | . 14 14 11 11 11 11 7 9 5 . . . . . . . . . 4 4 . . Core 4 | . . . . . . . 1 . 1 7 7 7 7 6 6 6 6 6 5 5 11 4 Treads 21 | . 19 14 29 33 33 33 26 27 22 21 21 21 21 24 25 25 25 23 14 13 16 17 Device 9 | . . . . . . . 8 8 9 6 7 7 7 7 6 11 8 8 12 13 13 19 Storage 7 | . 15 14 11 11 11 11 9 9 7 7 7 7 7 6 6 6 6 6 5 5 5 4 Processor 8 | . . . . . . . . . 9 14 14 14 8 10 12 12 12 12 7 11 11 10 Hackware 1 | . . . . . . . 9 9 4 . . . . . . . . . . . . . Protection 10 | . 6 14 22 22 22 22 9 9 12 7 7 7 12 12 10 6 9 8 11 10 11 2 Energy Gun 1 | . 11 14 . . . . . . . . . . . . . . . 4 . . 5 3 Ballistic Gun 19 | . 15 14 17 22 22 21 26 26 22 25 27 21 26 24 23 24 17 5 21 19 14 11 Naked Turns . | . . . . . . . . . . . . . . . . . . . . . . . Heaviest Build 146 | 10 29 29 55 55 55 55 69 73 79 82 84 85 87 85 86 87 134 134 109 146 146 139 Greatest Support 127 | 40 40 10 60 60 60 60 60 60 69 69 69 69 69 92 97 97 104 99 127 125 125 125 Greatest Overweight (x) 8 | . 2 2 3 . . . 1 1 1 1 1 1 1 1 . . 1 8 4 1 1 7 Average Overweight (x) . | . 1 2 . . . . . 1 . 1 1 1 1 . . . . 2 . . 1 . Largest Inventory Capacity 25 | 8 15 15 20 20 20 20 20 20 20 20 20 20 20 20 20 20 25 25 20 25 25 25 Average Capacity 20 | 6 13 15 15 20 20 20 20 20 20 20 20 20 20 20 20 20 22 23 20 20 25 20 Most Carried 25 | 4 15 15 15 18 19 19 20 20 20 20 20 19 20 20 20 20 25 25 20 25 25 25 Average Carried 19 | 2 9 14 14 16 18 18 19 19 19 19 19 19 19 19 19 19 21 22 19 20 23 19 Final Capacity 25 | 8 15 15 20 20 20 20 20 20 20 20 20 20 20 20 20 20 25 20 20 25 25 5 Final Carried 25 | 4 15 15 15 18 19 19 20 19 20 19 19 19 20 20 20 20 25 17 20 25 23 4 Class Distribution -------------------- 16% | Mutant 14% | Scavenger-Skirmisher 13% | Scavenger-Gunner 12% | Skirmisher 8% | Gunner 8% | Commander-Skirmisher 7% | Scavenger-Mutant 6% | Commander-Mutant 4% | Scavenger-Tank 3% | Machinist-Skirmisher Dominant Class ---------------- Mutant | -10/Materials Mutant | -10/Mines Mutant | -9/Materials Mutant | -9/Mines Mutant | -9/Exiles Mutant | -8/Mines Scavenger-Gunner | -8/Materials Scavenger-Gunner | -8/Storage Scavenger-Gunner | -7/Factory Skirmisher | -7/Lower Caves Skirmisher | -7/Lower Caves Skirmisher | -7/Data Miner Skirmisher | -6/Proximity Caves Machinist-Skirmisher | -6/Factory Machinist-Skirmisher | -6/Lower Caves Commander-Skirmisher | -6/Lower Caves Commander-Mutant | -6/Zion Skirmisher | -5/Proximity Caves Gunner | -5/Factory Scavenger-Skirmisher | -5/Upper Caves Scavenger-Skirmisher | -5/Upper Caves Scavenger-Mutant | -5/Warlord Resources | -11 -10 -10 -9 -9 -9 -8 -8 -8 -7 -7 -7 -7 -6 -6 -6 -6 -6 -5 -5 -5 -5 -5 ----------- Run | Scr Mat Min Mat Min Exi Min Mat Sto Fac Low Low Dat Pro Fac Low Low Zio Pro Fac Upp Upp War Matter Collected 9065 | 224 312 15 448 39 12 120 874 1091 817 202 238 . 221 261 180 238 61 395 1331 275 362 1349 Remotely . | . . . . . . . . . . . . . . . . . . . . . . . Salvage Created 14393 | . 482 . 479 . . 143 1145 1910 907 469 265 . 649 393 . 146 . 1057 1646 775 815 3112 Parts 647 | . 37 . 26 . . 16 71 99 59 11 11 . 24 19 . 8 . 30 59 18 32 127 Haulers Intercepted 15 | . 2 . 1 . . . 2 6 2 . . . 1 . . . . . 1 . . . Recyclers Shooed 4 | . . . . . . . 2 . . . . . . . . . . . 2 . . . Parts Field Recycled . | . . . . . . . . . . . . . . . . . . . . . . . Retrieved Matter . | . . . . . . . . . . . . . . . . . . . . . . . Parts Self-Destructed 254 | . . . . . . . . . . 6 11 . 13 . . 3 . 26 . 7 29 159 Prevented 98 | . . . . . . . . . . 5 . . 16 . 1 3 . . . 8 3 62 Kills | -11 -10 -10 -9 -9 -9 -8 -8 -8 -7 -7 -7 -7 -6 -6 -6 -6 -6 -5 -5 -5 -5 -5 ------- Run | Scr Mat Min Mat Min Exi Min Mat Sto Fac Low Low Dat Pro Fac Low Low Zio Pro Fac Upp Upp War Combat Hostiles Destroyed 260 | . 11 . 10 . . 13 22 32 18 8 4 . 9 6 . 2 . 17 21 7 12 68 Melee 1 | . . . . . . . . . . . . . . . . . . 1 . . . . Guns 144 | . 11 . 8 . . 1 16 30 18 4 4 . 2 6 . 2 . 9 15 . 8 10 Cannons 9 | . . . 2 . . . . . . . . . . . . . . . . . . 7 AOE 80 | . . . . . . 12 6 2 . 3 . . 4 . . . . 4 6 4 2 37 Classes Destroyed 24 | . 6 . 1 . . . 2 4 1 . 1 . . . . 2 . . 2 1 . 4 Worker 11 | . 1 . 3 . . . . 2 1 . . . . 1 . . . . 3 . . . Builder 1 | . . . . . . . . . . . . . . . . . . . 1 . . . Hauler 15 | . 2 . 1 . . . 2 6 2 . . . 1 . . . . . 1 . . . Recycler 6 | . . . . . . . 1 2 . . . . . . . . . . 3 . . . Minesweeper 1 | . . . . . . . . . . . . . . . . 1 . . . . . . Mechanic 2 | . . . . . . . 1 . . . . . . . . . . 1 . . . . Operator 6 | . 2 . . . . . 2 . . . . . . 1 . . . . 1 . . . Watcher 5 | . 2 . 1 . . . 2 . . . . . . . . . . . . . . . Swarmer 53 | . 6 . . . . 11 7 3 3 . . . . . . . . 4 5 . . 14 Saboteur 3 | . . . . . . . . . . . . . . . . . . . . . . 3 Grunt 108 | . 5 . 5 . . 2 11 17 7 7 2 . 8 3 . . . 7 4 2 8 20 Brawler 10 | . . . . . . . . 1 . . . . . . . . . 2 . 3 . 4 Duelist 6 | . . . . . . . . 1 . . 1 . . . . . . 2 . 1 1 . Protector 2 | . . . . . . . . 1 . . . . . . . . . . . . . 1 Sentry 32 | . . . 5 . . . 4 8 2 1 . . . 1 . 1 . 2 6 1 1 . Demolisher 3 | . . . . . . . . 1 . . . . . . . . . . . . . 2 Specialist 3 | . . . . . . . . . . . . . . . . . . . . . . 3 Hunter 7 | . . . . . . . . . . . . . . . . . . . 1 . 2 4 Programmer 21 | . . . . . . . . . 6 . . . 1 2 . . . . 5 . . 7 Behemoth 2 | . . . . . . . . . . . 1 . . . . . . . . . . 1 Striker 6 | . . . . . . . . . . . . . . . . . . . . . . 6 Executioner 2 | . . . . . . . . . . . . . . . . . . . . . . 2 Samaritan 1 | . . . . . . . . . . . . . . . . . . . . 1 . . Thug 1 | . . . . . . . . . . . . . . . . . . . . . . 1 Mutant 3 | . . . . . . . . . . . . . . . . 1 . . . 2 . . Best Kill Streak 23 | . 8 . 3 . . 4 4 8 4 4 3 . 5 2 . 1 . 9 7 7 6 23 Combat Bots Only 23 | . 8 . 2 . . 4 4 8 4 4 3 . 5 2 . 1 . 9 5 7 6 23 Max Kills in Single Turn 5 | . 2 . 1 . . 4 3 2 1 1 1 . 2 2 . 1 . 2 5 2 1 5 Gunslinging 1 | . 1 . . . . . 1 1 . . . . . . . . . . 1 . . . Exploded 5 | . . . . . . 4 3 2 . 1 . . 1 . . . . 2 3 2 1 5 Melee 1 | . . . . . . . . . . . . . . . . . . 1 . . . . Uniques/NPCs Destroyed . | . . . . . . . . . . . . . . . . . . . . . . . Combat | -11 -10 -10 -9 -9 -9 -8 -8 -8 -7 -7 -7 -7 -6 -6 -6 -6 -6 -5 -5 -5 -5 -5 -------- Run | Scr Mat Min Mat Min Exi Min Mat Sto Fac Low Low Dat Pro Fac Low Low Zio Pro Fac Upp Upp War Damage Taken 16760 | . 533 . 656 . . 195 1064 1015 775 69 272 . 184 202 . 205 . 2602 1551 522 967 5948 Core 1695 | . 77 . 34 . . 18 107 118 64 . 36 . . 6 . 25 . 194 65 . 32 919 Absorbed by Shields 896 | . . . . . . . . . 93 . . . . . . . . . . . 43 760 Core Remaining (%) 78 | 100 . 69 . . . 87 . 59 . . . . 85 . . . . 73 . . . . Volleys Fired 643 | . 73 . 52 . . 13 59 69 57 10 14 . 17 14 . 13 . 33 69 25 24 101 Largest 4 | . 2 . 2 . . 2 3 3 3 4 4 . 4 4 . 4 . 3 4 1 4 4 Hottest 250 | . 100 . 100 . . 46 84 84 75 100 100 . 100 100 . 100 . 250 111 98 165 168 Shots Fired 1585 | . 140 . 103 . . 18 167 193 170 24 56 . 33 56 . 46 . 51 231 25 75 197 Gun 1409 | . 134 . 84 . . 10 164 191 170 19 56 . 22 56 . 46 . 48 223 . 68 118 Cannon 79 | . . . 18 . . . . . . . . . . . . . . . 5 18 1 37 Launcher 91 | . 1 . . . . 8 3 2 . 5 . . 11 . . . . 3 3 7 6 42 Special 6 | . 5 . 1 . . . . . . . . . . . . . . . . . . . Kinetic 1347 | . 84 . 97 . . 10 164 191 170 19 56 . 22 56 . 46 . 27 223 . 51 131 Thermal 133 | . 55 . 6 . . . . . . . . . . . . . . 21 5 8 18 20 Explosive 19 | . 1 . . . . 8 3 2 . . . . . . . . . 3 2 . . . Electromagnetic 86 | . . . . . . . . . . 5 . . 11 . . . . . 1 17 6 46 Robot Hit Streak 32 | . 12 . 17 . . 6 13 13 32 11 11 . 15 13 . 15 . 17 17 8 14 13 Robot Miss Streak 10 | . 4 . 2 . . 2 10 6 3 2 2 . 4 1 . 2 . 7 7 1 3 3 Penetration Max 1 | . . . . . . . . . . . . . . . . . . . 1 . . . Secondary Targets 20 | . 3 . . . . . 2 6 . 2 1 . . . . . . . 2 . 3 1 Max Gunslinging Chain 1 | . 1 . . . . . 1 1 . 1 1 . . . . . . . 1 . 1 1 Shots Hit Robots 1105 | . 98 . 79 . . 10 135 145 125 16 42 . 11 35 . 32 . 43 159 8 49 118 Core Hits 699 | . 33 . 22 . . 19 83 121 40 12 12 . 20 19 . 9 . 52 82 11 24 140 Critical Hits 25 | . . . . . . . . . 3 2 1 . 1 2 . 1 . . 7 1 4 3 Critical Kills 8 | . . . . . . . . . . 1 . . 1 . . . . . 2 1 1 2 Critical Parts Destroyed 15 | . . . . . . . . . 3 1 1 . . 2 . 1 . . 3 . 3 1 Melee Attacks 161 | . . . . . . . 1 1 4 1 . . . 3 6 2 140 2 1 . . . Impact 161 | . . . . . . . 1 1 4 1 . . . 3 6 2 140 2 1 . . . Slashing . | . . . . . . . . . . . . . . . . . . . . . . . Piercing . | . . . . . . . . . . . . . . . . . . . . . . . Sneak Attacks . | . . . . . . . . . . . . . . . . . . . . . . . Combat Hostiles . | . . . . . . . . . . . . . . . . . . . . . . . Follow-up Attacks . | . . . . . . . . . . . . . . . . . . . . . . . Damage Inflicted 31842 | . 968 . 1066 . . 852 1978 2907 2136 617 657 . 1106 587 . 457 . 2502 3976 1006 1296 9731 Guns 17655 | . 928 . 723 . . 77 1754 2742 2136 200 657 . 187 587 . 445 . 1798 2791 . 859 1771 Cannons 2193 | . . . 268 . . . . . . . . . . . . . . . . 266 . 1659 Explosions 11838 | . 32 . . . . 768 200 151 . 417 . . 919 . . . . 701 1172 740 437 6301 Melee . | . . . . . . . . . . . . . . . . . . . . . . . Ramming 156 | . 8 . 75 . . 7 24 14 . . . . . . . 12 . 3 13 . . . Kinetic 16971 | . 488 . 954 . . 77 1754 2742 2136 200 657 . 187 587 . 445 . 255 2791 . 621 3077 Thermal 5115 | . 440 . 37 . . . . . . . . . 122 . . . . 1543 496 179 238 2060 Explosive 2585 | . 32 . . . . 768 200 151 . . . . . . . . . 701 648 . . 85 Electromagnetic 7015 | . . . . . . . . . . 417 . . 797 . . . . . 28 827 437 4509 Impact . | . . . . . . . . . . . . . . . . . . . . . . . Slashing . | . . . . . . . . . . . . . . . . . . . . . . . Piercing . | . . . . . . . . . . . . . . . . . . . . . . . Highest Corruption 5 | . . . 3 3 3 3 . . 2 2 2 2 3 1 1 1 . . 2 3 1 5 Average Corruption 2 | . . . 2 3 3 3 . . 1 2 2 2 2 1 1 1 . . 1 2 1 3 Corruption Purged 8 | . . . . . . . . . . . . . . . 1 1 . . . 5 1 . Effects 108 | . . . 5 7 5 9 . . 10 15 10 3 17 5 1 1 . . . 8 . 12 Message Errors 37 | . . . 3 2 3 2 . . 2 8 3 3 2 1 1 . . . . 3 . 4 Matter Fused 16 | . . . 1 2 2 4 . . . . . . 1 . . . . . . 1 . 5 Heat Flow Errors 13 | . . . . 1 . 1 . . . 2 3 . 4 . . . . . . 1 . 1 Energy Discharges 25 | . . . 1 2 . . . . 4 4 2 . 5 4 . 1 . . . 1 . 1 Data Loss (minor) 15 | . . . . . . 2 . . 3 1 2 . 4 . . . . . . 2 . 1 Weapon Failures 2 | . . . . . . . . . 1 . . . 1 . . . . . . . . . Overload Shots . | . . . . . . . . . . . . . . . . . . . . . . . Overflow Damage 448 | . . . . . . 41 . . . 43 . . 5 . . 2 . 48 58 12 . 239 Projectiles 194 | . . . . . . . . . . . . . . . . . . . . . . 194 Explosions 252 | . . . . . . 41 . . . 43 . . 5 . . . . 48 58 12 . 45 Melee 2 | . . . . . . . . . . . . . . . . 2 . . . . . . Knockbacks 11 | . . . 1 . . . . . . . . . . . . . . . . . . 10 Impact . | . . . . . . . . . . . . . . . . . . . . . . . Kinetic 11 | . . . 1 . . . . . . . . . . . . . . . . . . 10 Secondary . | . . . . . . . . . . . . . . . . . . . . . . . Self-Inflicted Damage 478 | . . . 4 . . 41 21 . . . . . 19 . . . . 138 . 214 41 . Shots 18 | . . . . . . 3 1 . . . . . 1 . . . . 3 . 8 2 . Rammed 35 | . 7 . 11 . . 1 5 3 1 . . . . 1 . 3 . 1 2 . . . Targets Rammed 41 | . 7 . 15 . . 1 6 3 1 . . . . 1 . 3 . 2 2 . . . Kicked . | . . . . . . . . . . . . . . . . . . . . . . . Crushed 6 | . . . 4 . . . 1 . . . . . . . . . . 1 . . . . Highest Temperature 498 | . 196 . 165 109 . 231 345 315 13 187 226 . 241 141 . 120 . 335 498 186 199 122 Average Temperature 86 | . 66 . 42 55 . 112 102 77 4 80 99 . 84 55 . 51 . 115 122 69 124 39 Received Heat Transfer 3352 | . 180 . 246 . . 36 486 369 169 36 72 . 36 60 . 42 . 618 180 90 212 520 Effects 10 | . . . . . . . 1 1 . . . . . . . . . 6 2 . . . Energy Bleed 4 | . . . . . . . 1 1 . . . . . . . . . 1 1 . . . Interference 4 | . . . . . . . . . . . . . . . . . . 4 . . . . Short Circuit 1 | . . . . . . . . . . . . . . . . . . 1 . . . . Damage (minor) 1 | . . . . . . . . . . . . . . . . . . . 1 . . . Siege Activations . | . . . . . . . . . . . . . . . . . . . . . . . Robots Corrupted 24 | . . . . . . . . . . 1 . . 3 . . . . . . 4 2 14 Combat Hostiles 23 | . . . . . . . . . . 1 . . 3 . . . . . . 3 2 14 Parts Fried 48 | . . . . . . . . . . 2 . . 2 . . . . . . 16 5 23 Impact Corruptions 2 | . . . . . . . . . . . . . . . . 2 . . . . . . Robots Melted 3 | . . . . . . . . . . . . . . . . . . 3 . . . . Combat Hostiles 3 | . . . . . . . . . . . . . . . . . . 3 . . . . Parts Melted 14 | . 4 . . . . . . . . . . . . . . . . 2 . . 1 7 Heat Transferred 6536 | . 1033 . 111 . . . . . . . . . 200 . . . . 2250 300 100 370 2172 Parts Sabotaged . | . . . . . . . . . . . . . . . . . . . . . . . Parts Stolen . | . . . . . . . . . . . . . . . . . . . . . . . Parts Stripped . | . . . . . . . . . . . . . . . . . . . . . . . Power Chain Reactions 19 | . . . . . . . . . . . . . 2 . . . . . . 3 . 14 Missiles Intercepted . | . . . . . . . . . . . . . . . . . . . . . . . Alert | -11 -10 -10 -9 -9 -9 -8 -8 -8 -7 -7 -7 -7 -6 -6 -6 -6 -6 -5 -5 -5 -5 -5 ------- Run | Scr Mat Min Mat Min Exi Min Mat Sto Fac Low Low Dat Pro Fac Low Low Zio Pro Fac Upp Upp War Peak Influence 822 | . 345 48 166 64 . 262 403 822 389 . . . . 165 . . . . 818 . . . Initial 364 | . . 48 . 64 . . 63 100 364 . . . . . . . . . 112 . . . Average 253 | . 154 42 84 64 . 164 253 505 237 . . . . 71 . . . . 362 . . . Maximum Alert Level 3 | . 1 . . . . 1 2 3 1 . . . . . . . . . 3 . . . Low Security (%) 44 | 100 58 100 100 100 . 64 23 6 35 . . . . 100 . . . . 19 . . . Level 1 38 | . 41 . . . . 35 71 25 64 . . . . . . . . . 51 . . . Level 2 13 | . . . . . . . 5 52 . . . . . . . . . . 24 . . . Level 3 3 | . . . . . . . . 15 . . . . . . . . . . 4 . . . Level 4 . | . . . . . . . . . . . . . . . . . . . . . . . Level 5 . | . . . . . . . . . . . . . . . . . . . . . . . High Security . | . . . . . . . . . . . . . . . . . . . . . . . Max Security . | . . . . . . . . . . . . . . . . . . . . . . . Squads Dispatched 40 | . 3 . . 1 . 1 4 11 6 . . . . 2 . . . 1 10 . 1 . Investigation 9 | . 2 . . 1 . . 1 1 2 . . . . . . . . . 2 . . . Extermination 8 | . . . . . . . . . 4 . . . . 2 . . . . 2 . . . Reinforcement 12 | . 1 . . . . 1 1 4 . . . . . . . . . . 5 . . . Assault 7 | . . . . . . . 1 3 . . . . . . . . . 1 1 . 1 . Garrison 4 | . . . . . . . 1 3 . . . . . . . . . . . . . . Intercept . | . . . . . . . . . . . . . . . . . . . . . . . Construction Impeded 1 | . . . . . . 1 . . . . . . . . . . . . . . . . Haulers Reinforced 1 | . . . . . . . . . . . . . . . . . . . 1 . . . Stealth | -11 -10 -10 -9 -9 -9 -8 -8 -8 -7 -7 -7 -7 -6 -6 -6 -6 -6 -5 -5 -5 -5 -5 --------- Run | Scr Mat Min Mat Min Exi Min Mat Sto Fac Low Low Dat Pro Fac Low Low Zio Pro Fac Upp Upp War Distress Signals 20 | . 2 . 4 . . . 5 3 . . . . . . . . . . 5 . . 1 Communications Jammed . | . . . . . . . . . . . . . . . . . . . . . . . Distress Signals . | . . . . . . . . . . . . . . . . . . . . . . . Times Spotted 438 | . 23 . 21 . . 13 47 55 21 6 4 . 10 11 . 2 . 32 38 7 12 136 Peak Tracking Total 16 | . 7 . 6 . . 4 5 7 4 4 3 . 5 4 . 1 . 9 6 7 11 16 Tactical Retreats 38 | . . . 2 . . 2 4 1 1 1 . . 1 . . . . 5 2 . 3 16 Traps | -11 -10 -10 -9 -9 -9 -8 -8 -8 -7 -7 -7 -7 -6 -6 -6 -6 -6 -5 -5 -5 -5 -5 ------- Run | Scr Mat Min Mat Min Exi Min Mat Sto Fac Low Low Dat Pro Fac Low Low Zio Pro Fac Upp Upp War Traps Triggered 6 | . 2 . 2 . . . . . . . . . . . . . . . 2 . . . Indirectly . | . . . . . . . . . . . . . . . . . . . . . . . Trap Hack Attempts 22 | . . . . . . . . 22 . . . . . . . . . . . . . . Triggered . | . . . . . . . . . . . . . . . . . . . . . . . Disarmed 1 | . . . . . . . . 1 . . . . . . . . . . . . . . Reprogrammed 3 | . . . . . . . . 3 . . . . . . . . . . . . . . Reused 2 | . . . . . . . . 1 . . . . . . . . . . . . 1 . Traps Extracted . | . . . . . . . . . . . . . . . . . . . . . . . Installed 5 | . . . . . . . . . . . . . . . . 3 . . . . 2 . Triggered 33 | . . . . . . . . 1 . 1 . . . . . 1 . . . . 3 27 Machines | -11 -10 -10 -9 -9 -9 -8 -8 -8 -7 -7 -7 -7 -6 -6 -6 -6 -6 -5 -5 -5 -5 -5 ---------- Run | Scr Mat Min Mat Min Exi Min Mat Sto Fac Low Low Dat Pro Fac Low Low Zio Pro Fac Upp Upp War Machines Disabled 22 | . 1 . 1 . . . 1 2 . . . . . . . 1 . . 11 2 . 3 Max in Single Turn 6 | . 1 . 1 . . . 1 1 . . . . . . . 1 . . 6 1 . 1 Garrison Access 2 | . . . . . . . 1 1 . . . . . . . . . . . . . . Machines Sabotaged . | . . . . . . . . . . . . . . . . . . . . . . . Garrisons Compromised . | . . . . . . . . . . . . . . . . . . . . . . . Overloaded Fab Kills . | . . . . . . . . . . . . . . . . . . . . . . . Fab Network Shutdowns . | . . . . . . . . . . . . . . . . . . . . . . . Hacking | -11 -10 -10 -9 -9 -9 -8 -8 -8 -7 -7 -7 -7 -6 -6 -6 -6 -6 -5 -5 -5 -5 -5 --------- Run | Scr Mat Min Mat Min Exi Min Mat Sto Fac Low Low Dat Pro Fac Low Low Zio Pro Fac Upp Upp War Machines Accessed 60 | . 7 1 4 1 1 . 12 9 6 . . 4 . 8 . . . . 4 2 1 . Terminals 30 | . 6 . 2 . . . 9 6 3 . . . . 3 . . . . 1 . . . Fabricators 2 | . . . . . . . . . 1 . . . . 1 . . . . . . . . Repair Stations 5 | . . . 1 . . . 1 . 1 . . . . 2 . . . . . . . . Recycling Units 7 | . 1 . . . . . 1 2 . . . . . . . . . . 3 . . . Scanalyzers 4 | . . . 1 . . . . . 1 . . . . 2 . . . . . . . . Garrison Access 2 | . . . . . . . 1 1 . . . . . . . . . . . . . . Total Hacks 193 | . 23 1 14 1 1 . 30 24 25 . . 30 . 27 . . . . 12 4 1 . Successful 131 | . 13 1 10 1 1 . 16 11 17 . . 30 . 20 . . . . 6 4 1 . Failed 60 | . 9 . 4 . . . 13 13 8 . . . . 7 . . . . 6 . . . Catastrophic 3 | . . . . . . . 1 . . . . . . 1 . . . . 1 . . . Database Lockouts 2 | . 1 . . . . . 1 . . . . . . . . . . . . . . . Manual 67 | . 17 . 7 . . . 15 10 8 . . . . 6 . . . . 3 . . 1 Terminals 82 | . 21 . 7 . . . 21 13 9 . . . . 7 . . . . 4 . . . Fabricators 6 | . . . . . . . . . 3 . . . . 3 . . . . . . . . Repair Stations 26 | . . . 2 . . . 4 . 10 . . . . 10 . . . . . . . . Recycling Units 18 | . 2 . . . . . 4 4 . . . . . . . . . . 8 . . . Scanalyzers 15 | . . . 5 . . . . . 3 . . . . 7 . . . . . . . . Garrison Access 8 | . . . . . . . 1 7 . . . . . . . . . . . . . . Terminal Hacks 61 | . 7 1 1 1 1 . 6 5 2 . . 30 . 1 . . . . 1 4 1 . Record 15 | . . . . . 1 . . . . . . 11 . . . . . . . 3 . . Part Schematic 8 | . . . . . . . . . . . . 8 . . . . . . . . . . Robot Schematic 9 | . . . . . . . . . . . . 8 . 1 . . . . . . . . Robot Analysis 6 | . 3 . . . . . 1 1 1 . . . . . . . . . . . . . Prototype ID Bank 7 | . 2 . . . . . 1 . 1 . . 3 . . . . . . . . . . Open Door 8 | . . 1 . 1 . . . 4 . . . . . . . . . . . 1 1 . Branch Access Points 3 | . . . 1 . . . 1 . . . . . . . . . . . 1 . . . Unreport Threat 1 | . . . . . . . 1 . . . . . . . . . . . . . . . Locate Traps 2 | . . . . . . . 2 . . . . . . . . . . . . . . . Hauler Manifests 1 | . 1 . . . . . . . . . . . . . . . . . . . . . Zone Layout 1 | . 1 . . . . . . . . . . . . . . . . . . . . . Fabricator Hacks 5 | . . . . . . . . . 3 . . . . 2 . . . . . . . . Load Schematic 2 | . . . . . . . . . 1 . . . . 1 . . . . . . . . Build 3 | . . . . . . . . . 2 . . . . 1 . . . . . . . . Repair Station Hacks 25 | . . . 2 . . . 4 . 10 . . . . 9 . . . . . . . . Scan Component 13 | . . . 1 . . . 2 . 5 . . . . 5 . . . . . . . . Repair 12 | . . . 1 . . . 2 . 5 . . . . 4 . . . . . . . . Recycling Unit Hacks 6 | . 1 . . . . . 3 . . . . . . . . . . . 2 . . . Process 1 | . . . . . . . 1 . . . . . . . . . . . . . . . Report Inventory 1 | . . . . . . . 1 . . . . . . . . . . . . . . . Retrieve Matter 1 | . . . . . . . 1 . . . . . . . . . . . . . . . Retrieve Components 3 | . 1 . . . . . . . . . . . . . . . . . 2 . . . Scanalyzer 10 | . . . 5 . . . . . . . . . . 5 . . . . . . . . Insert Component 6 | . . . 3 . . . . . . . . . . 3 . . . . . . . . Analyze 4 | . . . 2 . . . . . . . . . . 2 . . . . . . . . Garrison Access Hacks 1 | . . . . . . . . 1 . . . . . . . . . . . . . . Seal Access 1 | . . . . . . . . 1 . . . . . . . . . . . . . . Unauthorized Hacks 23 | . 5 . 2 . . . 3 5 2 . . . . 3 . . . . 3 . . . Terminals 15 | . 4 . 2 . . . 2 1 2 . . . . 3 . . . . 1 . . . Track 1 | . 1 . . . . . . . . . . . . . . . . . . . . . Assimilate 1 | . . . . . . . . . . . . . . 1 . . . . . . . . Botnet 9 | . 1 . 1 . . . 2 1 2 . . . . 2 . . . . . . . . Disrupt 3 | . 1 . 1 . . . . . . . . . . . . . . . 1 . . . Operators 1 | . 1 . . . . . . . . . . . . . . . . . . . . . Fabricators . | . . . . . . . . . . . . . . . . . . . . . . . Repair Stations . | . . . . . . . . . . . . . . . . . . . . . . . Recycling Units 4 | . 1 . . . . . . 1 . . . . . . . . . . 2 . . . Mask 3 | . . . . . . . . 1 . . . . . . . . . . 2 . . . Tunnel 1 | . 1 . . . . . . . . . . . . . . . . . . . . . Scanalyzers . | . . . . . . . . . . . . . . . . . . . . . . . Garrison Access 4 | . . . . . . . 1 3 . . . . . . . . . . . . . . Reprogram 4 | . . . . . . . 1 3 . . . . . . . . . . . . . . Data Cores Recovered 1 | . . . . . . . . . . . . . . . . . . . 1 . . . Used . | . . . . . . . . . . . . . . . . . . . . . . . Hacking Detections 38 | . 6 . 3 . . . 8 5 6 . . . . 7 . . . . 3 . . . Full Trace Events 7 | . 1 . . . . . 1 2 2 . . . . . . . . . 1 . . . Feedback Events . | . . . . . . . . . . . . . . . . . . . . . . . Feedback Blocked . | . . . . . . . . . . . . . . . . . . . . . . . Robot Schematics Acquired 9 | . . . . . . . . . . . . 8 . 1 . . . . . . . . Robots Built . | . . . . . . . . . . . . . . . . . . . . . . . Matter . | . . . . . . . . . . . . . . . . . . . . . . . Time . | . . . . . . . . . . . . . . . . . . . . . . . Total Robot Build Rating . | . . . . . . . . . . . . . . . . . . . . . . . Part Schematics Acquired 12 | . . . 2 . . . . . . . . 8 . 2 . . . . . . . . Parts Built 5 | . . . . . . . . . 4 . . . . 1 . . . . . . . . Matter 599 | . . . . . . . . . 248 . . . . 351 . . . . . . . . Time 155 | . . . . . . . . . 62 . . . . 93 . . . . . . . . Total Part Build Rating 15 | . . . . . . . . . 8 . . . . 7 . . . . . . . . Parts Repaired 12 | . . . 1 . . . 2 . 5 . . . . 4 . . . . . . . . Time 484 | . . . 26 . . . 70 . 204 . . . . 184 . . . . . . . . Parts Recycled . | . . . . . . . . . . . . . . . . . . . . . . . Recycled Matter 125 | . . . . . . . 125 . . . . . . . . . . . . . . . Retrieved Matter 327 | . . . . . . . 327 . . . . . . . . . . . . . . . Retrieved Components 12 | . 2 . . . . . . . . . . . . . . . . . 10 . . . Parts Scanalyzed 4 | . . . 2 . . . . . . . . . . 2 . . . . . . . . Part Schematics Acquired 4 | . . . 2 . . . . . . . . . . 2 . . . . . . . . Parts Damaged . | . . . . . . . . . . . . . . . . . . . . . . . Bothacking | -11 -10 -10 -9 -9 -9 -8 -8 -8 -7 -7 -7 -7 -6 -6 -6 -6 -6 -5 -5 -5 -5 -5 ------------ Run | Scr Mat Min Mat Min Exi Min Mat Sto Fac Low Low Dat Pro Fac Low Low Zio Pro Fac Upp Upp War Used RIF Installer . | . . . . . . . . . . . . . . . . . . . . . . . Robots Hacked . | . . . . . . . . . . . . . . . . . . . . . . . Non-combat . | . . . . . . . . . . . . . . . . . . . . . . . Combat . | . . . . . . . . . . . . . . . . . . . . . . . Robot Hacks Applied . | . . . . . . . . . . . . . . . . . . . . . . . Relay Couplers Released . | . . . . . . . . . . . . . . . . . . . . . . . Robots Rewired 8 | . . . . . . . . . . . . . . . . 4 . 2 . . 2 . Allies Hacked . | . . . . . . . . . . . . . . . . . . . . . . . Hacks Repelled . | . . . . . . . . . . . . . . . . . . . . . . . Allies | -11 -10 -10 -9 -9 -9 -8 -8 -8 -7 -7 -7 -7 -6 -6 -6 -6 -6 -5 -5 -5 -5 -5 -------- Run | Scr Mat Min Mat Min Exi Min Mat Sto Fac Low Low Dat Pro Fac Low Low Zio Pro Fac Upp Upp War Total Allies 26 | . . . . . . . . 15 . . . . 1 1 . 4 . 2 1 . 2 . Largest Group 10 | . . . . . . . . 10 1 . . . 1 1 1 4 4 4 2 . 2 2 Highest-Rated Group 173 | . . . . . . . . 173 25 . . . 95 10 10 113 113 113 58 . 58 58 Highest-Rated Ally 95 | . . . . . . . . 31 25 . . . 95 10 10 31 31 31 29 . 29 29 Total Orders 16 | . . . . . . . . 1 . . . . . 2 2 3 2 . 6 . . . STAY 7 | . . . . . . . . 1 . . . . . 1 1 2 1 . 1 . . . FOLLOW 5 | . . . . . . . . . . . . . . 1 1 1 1 . 1 . . . RETURN 4 | . . . . . . . . . . . . . . . . . . . 4 . . . Ally Attacks 178 | . . . . . . . . 97 . . . . 11 . . . . 41 7 . . 22 Total Damage 2711 | . . . . . . . . 1663 . . . . 318 . . . . 578 58 . . 94 Kills 26 | . . . . . . . . 14 . . . . 2 . . . . 5 3 . . 2 Allies Corrupted . | . . . . . . . . . . . . . . . . . . . . . . . Allies Melted 1 | . . . . . . . . 1 . . . . . . . . . . . . . . Intel | -11 -10 -10 -9 -9 -9 -8 -8 -8 -7 -7 -7 -7 -6 -6 -6 -6 -6 -5 -5 -5 -5 -5 ------- Run | Scr Mat Min Mat Min Exi Min Mat Sto Fac Low Low Dat Pro Fac Low Low Zio Pro Fac Upp Upp War Robot Analysis Total 6 | . 3 . . . . . 1 1 1 . . . . . . . . . . . . . Derelict Logs Recovered 11 | . . . . 1 . . . . . 2 2 . . . . 2 . . . 2 2 . Drone Launches 20 | . . . . . . . . . . . . . . . . . . . 4 . . 16 Drone Recoveries 4 | . . . . . . . . . . . . . . . . . . . 4 . . . Exploration | -11 -10 -10 -9 -9 -9 -8 -8 -8 -7 -7 -7 -7 -6 -6 -6 -6 -6 -5 -5 -5 -5 -5 ------------- Run | Scr Mat Min Mat Min Exi Min Mat Sto Fac Low Low Dat Pro Fac Low Low Zio Pro Fac Upp Upp War Turns Passed 33935 | 92 1611 453 990 327 266 683 1776 2641 2740 1368 1111 202 918 1072 810 1723 4106 1346 1301 3681 2330 2388 Spaces Moved 13977 | 55 764 407 475 203 166 397 511 823 948 507 411 78 331 439 477 988 1859 436 622 1383 832 865 Core 11 | 7 . . . . . . . . . . . . . . . . . . . . . 4 Treads 12822 | 48 321 . 387 203 166 397 511 823 948 507 411 78 331 439 477 988 1859 326 526 1383 832 861 Legs . | . . . . . . . . . . . . . . . . . . . . . . . Wheels 1144 | . 443 407 88 . . . . . . . . . . . . . . 110 96 . . . Hover . | . . . . . . . . . . . . . . . . . . . . . . . Flight . | . . . . . . . . . . . . . . . . . . . . . . . Fastest Speed 50 | 50 95 110 95 160 160 160 160 260 160 260 260 260 260 160 160 160 160 200 140 163 263 162 Average Speed 198 | 146 132 110 148 160 160 160 250 260 241 260 260 260 260 162 160 160 196 244 159 168 263 203 Slowest Speed 560 | 160 260 110 160 160 160 160 260 260 260 260 260 260 260 260 160 160 260 260 265 263 263 560 Overloaded Moves . | . . . . . . . . . . . . . . . . . . . . . . . Propulsion Burnouts . | . . . . . . . . . . . . . . . . . . . . . . . Robots Hopped 1 | . . . . . . . . . . . . . . . . . 1 . . . . . Cave-ins Triggered . | . . . . . . . . . . . . . . . . . . . . . . . Exploration Rate (%) 57 | 4 84 74 35 50 54 87 42 92 17 72 51 68 56 18 51 81 84 45 17 93 69 81 Regions Visited 22 Branch Regions 16 Pre-discovered Areas 8 | . 1 . . . . . . . . 1 . 1 . . . . 2 . . 3 . . Known Exits Taken 15 | . . . 1 . . . 1 . 1 1 1 1 1 1 1 1 1 1 1 1 1 . Unknown Exits Taken 7 | 1 1 1 . 1 1 1 . 1 . . . . . . . . . . . . . . Scrap Searched 27 | . . 1 . 2 . 1 . . . 1 1 . . . 9 2 4 1 . 3 2 . Spaces Dug 132 | . 13 . 1 . . 4 14 . 4 1 . . 7 2 5 2 3 20 34 16 1 5 Terrain Destroyed 372 | . 13 . 1 . . 44 22 23 4 1 . . 15 2 5 2 3 39 93 29 6 70 Melee 21 | . . . . . . . 1 . 4 1 . . . 2 5 2 3 2 1 . . . Projectile 68 | . 4 . 1 . . . . . . . . . . . . . . 1 15 8 6 33 AOE 283 | . 9 . . . . 44 21 23 . . . . 15 . . . . 36 77 21 . 37 Terrain Rammed . | . . . . . . . . . . . . . . . . . . . . . . . Walls Destroyed . | . . . . . . . . . . . . . . . . . . . . . . . Machines Disabled . | . . . . . . . . . . . . . . . . . . . . . . . Actions | -11 -10 -10 -9 -9 -9 -8 -8 -8 -7 -7 -7 -7 -6 -6 -6 -6 -6 -5 -5 -5 -5 -5 --------- Run | Scr Mat Min Mat Min Exi Min Mat Sto Fac Low Low Dat Pro Fac Low Low Zio Pro Fac Upp Upp War Total 18869 | 64 1221 413 654 205 166 422 875 1210 1331 542 439 78 369 780 511 1109 2034 628 829 2698 938 1353 Wait 3241 | . 333 1 71 . . 2 241 231 251 13 7 . 7 297 8 37 1 81 84 1242 27 307 Move 13953 | 54 763 406 474 202 165 396 510 822 947 506 410 77 330 438 476 987 1856 435 621 1382 831 865 Hop 1 | . . . . . . . . . . . . . . . . . 1 . . . . . Pick Up 119 | 4 17 2 9 3 1 1 15 8 14 . . . 1 5 3 1 7 1 9 11 5 2 Fast Attach 92 | 6 4 . 4 . . . 4 7 10 2 . . 3 7 3 . 2 1 11 7 2 19 Attach 54 | . 4 . 4 . . 1 4 1 5 1 . . . 2 . . 4 7 3 . 3 15 Detach 29 | . 2 . . . . . . 1 1 . . . 1 . 2 . 5 . 1 2 3 11 Swap 206 | . 12 1 10 . . 8 16 20 17 8 7 1 8 7 7 9 11 9 19 17 10 9 Drop 169 | . 6 3 15 . . . 19 25 24 1 1 . 2 6 6 1 7 2 9 12 6 24 Fire 643 | . 73 . 52 . . 13 59 69 57 10 14 . 17 14 . 13 . 33 69 25 24 101 Melee 161 | . . . . . . . 1 1 4 1 . . . 3 6 2 140 2 1 . . . Ram 1 | . . . 1 . . . . . . . . . . . . . . . . . . . Kick . | . . . . . . . . . . . . . . . . . . . . . . . Crush 40 | . 7 . 14 . . 1 6 3 1 . . . . 1 . 3 . 2 2 . . . Escape Stasis . | . . . . . . . . . . . . . . . . . . . . . . . Rewire 133 | . . . . . . . . . . . . . . . . 53 . 55 . . 25 . Trap 27 | . . . . . . . . 22 . . . . . . . 3 . . . . 2 . Miscellaneous . | . . . . . . . . . . . . . . . . . . . . . . . Route ------- -11/Scrapyard -10/Materials (discovered 4 exits: *Mat x3 / *Min) -10/Mines -9/Materials -9/Mines (discovered 2 exits: *Mat / *Exi) -9/Exiles -8/Mines (discovered 2 exits: *Mat x2) -8/Materials (discovered 2 exits: *Fac / *Sto) -8/Storage -7/Factory (discovered 2 exits: *Fac / *Low) -7/Lower Caves -7/Lower Caves (discovered 2 exits: *Fac / *Dat) -7/Data Miner -6/Proximity Caves -6/Factory -6/Lower Caves -6/Lower Caves -6/Zion -5/Proximity Caves -5/Factory (discovered 3 exits: *Fac / *Upp x2) -5/Upper Caves -5/Upper Caves -5/Warlord History --------- Turn | Location | Event 8 | -11/Scrapyard | Discovered new exit (range 15) 93 | -11/Scrapyard | Entered Materials 108 | -10/Materials | Central database locked down 303 | -10/Materials | Build established: Mutant 320 | -10/Materials | Discovered new exit (range 14) 717 | -10/Materials | Destroyed 8 combat bots 822 | -10/Materials | Discovered new exit (range 15) 1426 | -10/Materials | Discovered new exit (range 9) 1677 | -10/Materials | Discovered new exit (range 15) 1704 | -10/Materials | Entered Mines 1767 | -10/Mines | Discovered new exit (range 10) 1772 | -10/Mines | Received a Rocket Launcher from a helpful Derelict 1969 | -10/Mines | Found the Drone Emporium 1977 | -10/Mines | Found Prototype Device 2157 | -10/Mines | Entered Materials 2157 | -9/Materials | Evolved 2 slots: Propulsion x1, Utility x1 2475 | -9/Materials | Repaired Lgt. Treads 2880 | -9/Materials | Identified Bomb Drone Bay 3055 | -9/Materials | Identified exit to Mines 3147 | -9/Materials | Entered Mines 3197 | -9/Mines | Learned Materials terminal intel 3313 | -9/Mines | Met a Derelict shopkeep closing up shop 3442 | -9/Mines | Discovered new exit (range 8) 3466 | -9/Mines | Deemed a non-threat by the Exiles lab entrance 3467 | -9/Mines | Discovered new exit (range 5) 3474 | -9/Mines | Entered Exiles 3474 | -9/Exiles | Found Exiles lab abandoned 3719 | -9/Exiles | Discovered new exit (range 14) 3740 | -9/Exiles | Entered Mines 4007 | -8/Mines | Discovered new exit (range 7) 4403 | -8/Mines | Discovered new exit (range 11) 4423 | -8/Mines | Entered Materials 4423 | -8/Materials | Evolved 2 slots: Utility x1, Weapon x1 4424 | -8/Materials | Loaded intel: 12 terminal locations 5128 | -8/Materials | Build established: Gunner 5204 | -8/Materials | Discovered new exit (range 12) 5430 | -8/Materials | Discovered new exit (range 12) 5553 | -8/Materials | Central database locked down 5712 | -8/Materials | Identified exit to Storage 5883 | -8/Materials | Repaired Lgt. Treads 5928 | -8/Materials | Repaired Kinecellerator 5961 | -8/Materials | Garrison activated, responded to threat 6199 | -8/Materials | Entered Storage 6275 | -8/Storage | Build established: Scavenger-Gunner 6416 | -8/Storage | Met a pair of Derelict thieves 6531 | -8/Storage | Destroyed 8 combat bots 6778 | -8/Storage | Found Prototype Protection 6778 | -8/Storage | Identified Lgt. Regenerative Plating 7059 | -8/Storage | Found Lgt. Regenerative Plating 7283 | -8/Storage | Discovered new exit (range 13) 8413 | -8/Storage | Assisted by bots powering up and referring to "LRC-V3" 8599 | -8/Storage | First assault squad dispatched 8840 | -8/Storage | Entered Factory 8840 | -7/Factory | Accompanied by 1 ally 8840 | -7/Factory | Evolved 2 slots: Utility x2 9146 | -7/Factory | Build established: Scavenger-Skirmisher 9691 | -7/Factory | Build established: Scavenger-Tank 9756 | -7/Factory | Discovered new exit (range 11) 9790 | -7/Factory | Identified exit to Lower Caves 10341 | -7/Factory | Build established: Scavenger-Gunner 10695 | -7/Factory | Repaired Lgt. Treads 10722 | -7/Factory | Repaired Lgt. Treads 10756 | -7/Factory | Repaired Imp. Treads 10771 | -7/Factory | Discovered new exit (range 15) 10817 | -7/Factory | Repaired Enh. Autogun 10878 | -7/Factory | Repaired Enh. Autogun 11291 | -7/Factory | Fabricated Imp. Treads? 11348 | -7/Factory | Fabricated Imp. Treads? 11580 | -7/Factory | Entered Lower Caves 11801 | -7/Lower Caves | Encountered a Warlord checkpoint 11901 | -7/Lower Caves | Build established: Skirmisher 11953 | -7/Lower Caves | Attracted the attention of an 0b10 checkpoint 12257 | -7/Lower Caves | Found Alien Artifact 12257 | -7/Lower Caves | Identified Core Expander 12257 | -7/Lower Caves | Installed Core Expander, added new Weapon slot 12709 | -7/Lower Caves | Discovered new exit (range 15) 12760 | -7/Lower Caves | Build established: Gunner 12777 | -7/Lower Caves | Learned 8 Factory zone layouts 12946 | -7/Lower Caves | Identified exit to Lower Caves 12948 | -7/Lower Caves | Entered another Lower Caves area 13007 | -7/Lower Caves | Discovered new exit (range 7) 13106 | -7/Lower Caves | Learned Factory trap positions 13273 | -7/Lower Caves | Build established: Skirmisher 13680 | -7/Lower Caves | Spotted B-75 Beast 13705 | -7/Lower Caves | Destroyed B-75 Beast 14038 | -7/Lower Caves | Discovered new exit (range 5) 14046 | -7/Lower Caves | Identified exit to Data Miner 14059 | -7/Lower Caves | Entered Data Miner 14059 | -7/Data Miner | Discovered new exit (range 7) 14109 | -7/Data Miner | Met Data Miner 14158 | -7/Data Miner | Learned location of Section 7 (-2) 14158 | -7/Data Miner | Acquired the access code to Warlord's prototype stash 14202 | -7/Data Miner | Received God Mode back door access code from Data Miner 14257 | -7/Data Miner | Identified exit to Proximity Caves 14261 | -7/Data Miner | Entered Proximity Caves 14438 | -6/Proximity Caves | Escorted by Enhanced Grunt 15148 | -6/Proximity Caves | Discovered new exit (range 13) 15176 | -6/Proximity Caves | Identified exit to Factory 15179 | -6/Proximity Caves | Entered Factory 15179 | -6/Factory | Evolved 2 slots: Propulsion x1, Utility x1 15180 | -6/Factory | Identified exit to Lower Caves 15181 | -6/Factory | Loaded intel: 76 trap records 15468 | -6/Factory | Build established: Machinist-Skirmisher 15938 | -6/Factory | Fabricated Exp. Terrain Scan Processor (x1) 16053 | -6/Factory | Repaired Imp. Treads 16087 | -6/Factory | Repaired Imp. Treads 16158 | -6/Factory | Repaired Enh. Autogun 16220 | -6/Factory | Repaired Enh. Autogun 16251 | -6/Factory | Entered Lower Caves 16251 | -6/Lower Caves | Accompanied by 1 ally 16260 | -6/Lower Caves | Encountered a Warlord checkpoint 17029 | -6/Lower Caves | Discovered new exit (range 12) 17050 | -6/Lower Caves | Identified exit to Lower Caves 17061 | -6/Lower Caves | Entered another Lower Caves area 17220 | -6/Lower Caves | Build established: Skirmisher 17282 | -6/Lower Caves | Attacked by a delusional Derelict stockpiling Unaware 17585 | -6/Lower Caves | Attracted the attention of an 0b10 checkpoint 17682 | -6/Lower Caves | Build established: Commander-Skirmisher 17712 | -6/Lower Caves | Learned 4 Factory zone layouts 18038 | -6/Lower Caves | Learned 12 Factory zone layouts 18049 | -6/Lower Caves | Discovered new exit (range 9) 18060 | -6/Lower Caves | Identified exit to Zion 18349 | -6/Lower Caves | Encountered a Warlord checkpoint 18784 | -6/Lower Caves | Entered Zion 18784 | -6/Zion | Accompanied by 4 allies 18842 | -6/Zion | Discovered new exit (range 14) 18896 | -6/Zion | Given the Hacking Drone Bay 18897 | -6/Zion | Found Prototype Device 18898 | -6/Zion | Identified Hacking Drone Bay 19071 | -6/Zion | Given A8's code to call for help 19157 | -6/Zion | Visited the Megawrench Repair Shop 19471 | -6/Zion | Learned Factory emergency access door positions 19830 | -6/Zion | Found Prototype Energy Gun 19830 | -6/Zion | Identified Storm Laser 20173 | -6/Zion | Megawrench repaired 14 parts 20486 | -6/Zion | Build established: Commander-Mutant 22615 | -6/Zion | Build established: Commander-Gunner 22886 | -6/Zion | Identified exit to Proximity Caves 22890 | -6/Zion | Entered Proximity Caves 22890 | -5/Proximity Caves | Accompanied by 4 allies 23606 | -5/Proximity Caves | Build established: Skirmisher 23766 | -5/Proximity Caves | Attracted the attention of an 0b10 outpost 23850 | -5/Proximity Caves | Destroyed 9 combat bots 23855 | -5/Proximity Caves | Attracted the attention of an 0b10 checkpoint 23906 | -5/Proximity Caves | Lost 4 parts (2n2u) 24216 | -5/Proximity Caves | Discovered new exit (range 7) 24228 | -5/Proximity Caves | Identified exit to Factory 24236 | -5/Proximity Caves | Entered Factory 24236 | -5/Factory | Accompanied by 2 allies 24236 | -5/Factory | Evolved 2 slots: Power x1, Utility x1 24237 | -5/Factory | Identified exit to Upper Caves 24494 | -5/Factory | Build established: Gunner 24957 | -5/Factory | Discovered new exit (range 16) 25135 | -5/Factory | Identified exit to Factory 25436 | -5/Factory | First assault squad dispatched 25443 | -5/Factory | Lost 3 parts (1n2u) 25537 | -5/Factory | Entered Upper Caves 26063 | -5/Upper Caves | Discovered new exit (range 14) 26124 | -5/Upper Caves | Learned Research trap positions 26439 | -5/Upper Caves | Build established: Mutant 27034 | -5/Upper Caves | Attracted the attention of an 0b10 outpost 27101 | -5/Upper Caves | Destroyed 7 combat bots 27435 | -5/Upper Caves | Build established: Scavenger-Skirmisher 29215 | -5/Upper Caves | Identified exit to Upper Caves 29218 | -5/Upper Caves | Entered another Upper Caves area 29308 | -5/Upper Caves | Encountered a Warlord checkpoint 30460 | -5/Upper Caves | Attracted the attention of an 0b10 outpost 30736 | -5/Upper Caves | Learned Factory emergency access door positions 30948 | -5/Upper Caves | Discovered new exit (range 7) 30964 | -5/Upper Caves | Identified exit to Warlord 31022 | -5/Upper Caves | Learned Factory emergency access door positions 31060 | -5/Upper Caves | Build established: Scavenger-Mutant 31548 | -5/Upper Caves | Entered Warlord 31548 | -5/Warlord | Accompanied by 2 allies 31663 | -5/Warlord | Build established: Scavenger-Skirmisher 32255 | -5/Warlord | Met Warlord 32271 | -5/Warlord | Opened Warlord's prototype stash 32277 | -5/Warlord | Found Prototype Reactor 32277 | -5/Warlord | Identified Vortex Chain Reactor 32280 | -5/Warlord | Warlord's base attacked by MAIN.C 32285 | -5/Warlord | Found Prototype Processor 32285 | -5/Warlord | Identified Spectral Analyzer 32289 | -5/Warlord | Found Prototype Device 32289 | -5/Warlord | Identified Exp. Focal Shield 32303 | -5/Warlord | Found Prototype Device 32303 | -5/Warlord | Identified Exp. Phase Shifter 32338 | -5/Warlord | Build established: Scavenger-Mutant 32556 | -5/Warlord | Warlord forces counterattacked 32588 | -5/Warlord | Spotted Striker 32593 | -5/Warlord | Spotted B-86 Titan 32682 | -5/Warlord | P-80 Master assimilated allied 7N-XCP(g) 32684 | -5/Warlord | P-80 Master assimilated allied MF-AN1(g) 32930 | -5/Warlord | Build established: Scavenger-Tank 32948 | -5/Warlord | Spotted Striker 32955 | -5/Warlord | Destroyed Striker 33028 | -5/Warlord | Spotted Striker 33108 | -5/Warlord | Spotted Executioner 33108 | -5/Warlord | Spotted Executioner 33181 | -5/Warlord | Found Exp. Targeting Computer 33223 | -5/Warlord | Spotted Striker 33237 | -5/Warlord | Destroyed Striker 33277 | -5/Warlord | Destroyed 8 combat bots 33296 | -5/Warlord | Lost 3 parts (1n2w) 33299 | -5/Warlord | Spotted Striker 33302 | -5/Warlord | Destroyed Striker 33306 | -5/Warlord | Destroyed B-75 Beast 33312 | -5/Warlord | Spotted Striker 33314 | -5/Warlord | Spotted Executioner 33316 | -5/Warlord | Spotted B-86 Titan 33317 | -5/Warlord | Destroyed Striker 33320 | -5/Warlord | Destroyed Executioner 33320 | -5/Warlord | Spotted Striker 33341 | -5/Warlord | Destroyed 23 combat bots 33342 | -5/Warlord | Lost 4 parts (2n1u1w) 33435 | -5/Warlord | Spotted Executioner 33438 | -5/Warlord | Destroyed Executioner 33477 | -5/Warlord | Destroyed 9 combat bots 33485 | -5/Warlord | Spotted Executioner 33488 | -5/Warlord | Found Prototype Ballistic Cannon 33488 | -5/Warlord | Identified Hvy. Autocannon 33498 | -5/Warlord | Core integrity fell below 50% 33537 | -5/Warlord | Lost 8 parts (1p1n4u2w) 33690 | -5/Warlord | Spotted Striker 33726 | -5/Warlord | Destroyed Striker 33776 | -5/Warlord | Build established: Scavenger-Mutant 33838 | -5/Warlord | Spotted Striker 33873 | -5/Warlord | Core integrity fell below 20% 33879 | -5/Warlord | Destroyed Striker 33898 | -5/Warlord | Lost 4 parts (2n1u1w) 33901 | -5/Warlord | Destroyed 7 combat bots 33916 | -5/Warlord | Spotted Striker 33936 | -5/Warlord | Destroyed by G-67 Veteran with Plasma Rifle Last Messages --------------- 33885_ Dropped Hacking Drone Bay. 33885_ Dropped Mak. System Shield. 33886_ Dropped Mak. Hacking Suite. 33886_ Dropped Matter Compressor. 33887_ Unknown Hover Unit fries itself beyond repair. 33888_ Dropped Gauss Rifle. 33888_ Dropped KE Penetrator. 33896_ Imp. Remote Datajack fries itself beyond repair. 33904_ Dropped Hcp. Storage Unit. 33904_ Acquired 79 matter. 33908_ Acquired 50 matter. 33916_ Acquired 62 matter. 33919_ Knocked back. 33924_ Exp. Focal Shield destroyed. 33925_ 0R2K:SPT/N3,AUN>,>YEIKOL6/F%M>0OJ 33926_ Slug penetrates Striker. 33934_ Anti-Ion Cluster explodes. 33934_ Destroyed Lgt. Angular Momentum Engine. 33934_ HERF Cannon destroyed. 33934_ Enh. Autogun destroyed. Map ----- +----------------------------------------------------+ | | | | | | | | | | | | | | | | | | | ?????????#???????????????#???????????#???????????? | | #?????????#?????#??#???????##????#############?### | | ??#???????????????#??#?###???????# #?# | | ##???????#?????????????#?????#???# #?# | | ????????????????????#??###??????## #?# | | ???????????#????########"###?##### #?# | | ???????????????## ""### " ### | | #?????#???#?????# " % # " " | | #??#??#????????## ""## + ##### | | ???????????????## = #### #############???? | | ????#??????????#" #??# ##????"?????????? | | ????????#?????# # #??# #??????"????????? | | ????#?#?????????# [ #??# #?#?????????????? | | ?##??#?????#### # !]!! #??# #???????????????? | | ???????????# !!*![ ##?# #???????????????? | | #??#???????# ;;;##### ##??????????????? | | ??#????? ? ! K@% % ##????? ???????? | | ??#?????? ^[ = ! #??????????????? | | ???????"???"" %^! %!#??????????????? | | #???#???????" ^^ %% = #??????????????? | | ??#????"???"" gggg" " " % #??????????????? | | ?#??? ????? % """" #?????? ???????? | | ???#?????### %"""" #?????? ???????? | | ??????#?## + #?????##???????? | | ?????????# # #?#####????????? | | ???#?????# + # ####????## | | ??#????#?# ###### ? | | ???? ????# !! #????# ? | | ?????????# [ ! #????# %= ? | | ?????????# [[ #??#?#### ###### #####???# | | ?????????# #???????#"#? ??#######????????? | | ??????#??###########?#######"###?????????????????? | | ???????????#?????????# ###???????????????? | | ???#############???#?# == ################### | | ??? ## ??#??# = ! # | | ??? ## #?#??# !! + | | ???# ## ##???# # | | ???# ## ##???# # | | ???# ## #????# # ############+ | | ???# ## #????# # #?????????# | | #### + #????##+#####+## #???????"X | +----------------------------------------------------+ Best States ------------- Heat Dissipation 78 Coolant Potential 120 Energy Generation 55 Energy Capacity 700 Matter Stores 300 Matter Capacity 300 Sight Range 16 Robot Scan Range 16 Terrain Scan Range 24 Terrain Scan Density 1010 Armor Coverage 900 Resistance: KI 30 Weapon Shielding 66 Evasion (%) 41 Targeting Accuracy 12 Target Analysis 6 Recoil Reduction 4 Kinecelleration 40 Salvage Targeting 4 Offensive Hacking 10 Item Schematics ----------------- Huge Storage Unit | -9/Materials | Scanalyzed Imp. Treads | -9/Materials | Scanalyzed Combat Drone Bay | -7/Data Miner | Free Lgt. Regenerative Plating | -7/Data Miner | Free Exp. Terrain Scan Processor | -7/Data Miner | Free Exp. Targeting Computer | -7/Data Miner | Free Tactical Coordination Suite | -7/Data Miner | Free Exp. ECM Suite | -7/Data Miner | Free Cloaking Device | -7/Data Miner | Free Mni. Smartbomb Launcher | -7/Data Miner | Free Enh. Autogun | -6/Factory | Scanalyzed Hrd. Heavy Armor Plating | -6/Factory | Scanalyzed Robot Schematics ------------------ S-27 Virus | -7/Data Miner | Free G-50 Soldier | -7/Data Miner | Free G-67 Veteran | -7/Data Miner | Free L-41 Fighter | -7/Data Miner | Free X-72 Disruptor | -7/Data Miner | Free H-66 Slayer | -7/Data Miner | Free P-70 Sage | -7/Data Miner | Free I-36 Angel | -7/Data Miner | Free Y-54 Guardian | -6/Factory | Hacked Fabricated ------------ Imp. Treads | x2 | -7/Factory Imp. Treads | x2 | -7/Factory Exp. Terrain Scan Processor | x1 | -6/Factory Alien Tech Used ----------------- Core Expander Achievements -------------- None Challenges ------------ None Game ------ Seed PhysicsImpulsePurifier Manual? 0 Play Time 02:36:03 Cumulative 792.5 hours Start 2021.02.23 @ 01:04:14 End 2021.02.24 @ 01:32:56 Sessions 5 Manual Loads 0 Difficulty Rogue Special Mode None Game No. 554 Rogue 550 Adventurer 4 Explorer 0 Win Type - Total 87 Types 66/9/4/4/2/0/0/1/1 Lore% 95 Gallery% 97 Achievement% 96 Wizard Run 0 Options --------- ASCII 0 Keyboard 1 Movement Vi Keybinds 0 Fullscreen 0 Font 16/Terminus Map View 76x50 Tactical HUD 1 Map Filters NONE Filters NONE Steam 1 RUN: 66ed4f22-b917-493b-a3c7-d65d98137510